bitfinex/quotes_BTCUSD_20240611
["timestamp","ask_amount","ask_price","bid_price","bid_amount"]
[1718113258136,0.56173487,67001.0,67000.0,0.01486]
[1718113258137,0.56273487,67001.0,67000.0,0.01486]
[1718113258383,0.56273487,67001.0,67000.0,0.01586]
[1718113259005,0.56173487,67001.0,67000.0,0.01086]
[1718113260963,0.56273487,67001.0,67000.0,0.01486]
[1718113261619,0.56673487,67001.0,67000.0,0.01686]
[1718113261837,0.56573487,67001.0,67000.0,0.01086]
[1718113262040,0.56173487,67001.0,67000.0,0.01086]
[1718113262253,0.56173487,67001.0,67000.0,0.01286]
[1718113262498,0.56573487,67001.0,67000.0,0.01286]
[1718113262716,0.62134209,67001.0,67000.0,0.01286]
[1718113263164,0.56573487,67001.0,67000.0,0.01286]
[1718113263776,0.57573487,67001.0,67000.0,0.01286]
[1718113264213,0.56573487,67001.0,67000.0,0.01286]
[1718113264869,0.24816394,67001.0,67000.0,0.01286]
[1718113264998,0.24816394,67001.0,67000.0,0.408813]
[1718113264999,0.00955544,67001.0,67000.0,0.408813]
[1718113265203,0.004,67001.0,67000.0,0.26246896]
[1718113265400,0.0386085,67011.0,67006.0,0.149238]
[1718113265600,0.0386085,67011.0,67007.0,0.023]
[1718113268534,0.0396085,67011.0,67007.0,0.029]
[1718113269499,0.0396085,67011.0,67008.0,0.0806]
[1718113269705,0.0396085,67011.0,67009.0,0.023]
[1718113269916,0.0396085,67011.0,67010.0,0.307131]
[1718113270125,0.0396085,67011.0,67010.0,0.330131]
[1718113270338,0.0396085,67011.0,67008.0,0.0806]
[1718113270554,0.2,67008.0,67007.0,0.02592193]
[1718113270773,0.2586085,67008.0,67007.0,0.008]
[1718113270988,0.40292843,67008.0,67007.0,0.002]
[1718113271220,0.41253687,67008.0,67007.0,0.008]
[1718113271671,0.41253687,67008.0,67007.0,0.002]
[1718113271901,0.2,67002.0,67000.0,0.01086]
[1718113272136,0.0386085,67004.0,67000.0,0.01086]
[1718113272874,0.20960844,67003.0,67000.0,0.01086]
[1718113273148,0.00960844,67003.0,67001.0,0.07215996]
[1718113273358,0.00960844,67003.0,67000.0,0.01086]
[1718113274615,0.00960844,67003.0,67000.0,0.01686]
[1718113275016,0.0386085,67004.0,67002.0,0.07215996]
[1718113275222,0.0386085,67010.0,67009.0,0.149233]
[1718113275433,0.0386085,67010.0,67009.0,0.172233]
[1718113275634,0.0386085,67010.0,67005.0,0.149241]
[1718113275865,0.0386085,67005.0,67001.0,0.002]
[1718113276074,0.0386085,67005.0,67000.0,0.03986]
[1718113276303,0.0386085,67006.0,67002.0,0.002]
[1718113276509,0.0386085,67010.0,67006.0,0.149238]
[1718113276718,0.0386085,67008.0,67007.0,0.023]
[1718113276931,0.0386085,67008.0,67005.0,0.172242]
[1718113277140,0.0386085,67007.0,67005.0,0.172242]
[1718113278184,0.0386085,67007.0,67000.0,0.01086]
[1718113278393,0.2,67002.0,67001.0,0.023]
[1718113278610,0.2,67001.0,67000.0,0.01086]
[1718113278821,0.2386085,67001.0,67000.0,0.01086]
[1718113279025,0.0386085,67001.0,67000.0,0.01086]
[1718113279234,0.2386085,67001.0,67000.0,0.01086]
[1718113279653,0.0386085,67001.0,67000.0,0.01086]
[1718113280063,0.0386085,67001.0,67000.0,0.01286]
[1718113281574,0.0386085,67001.0,67000.0,0.162113]
[1718113281580,0.001,67001.0,67000.0,1.21471673]
[1718113281780,0.001,67001.0,67000.0,0.95050907]
[1718113282188,0.001,67001.0,67000.0,0.928113]
[1718113282433,0.149207,67021.0,67006.0,0.149239]
[1718113282434,0.0386085,67012.0,67006.0,0.149239]
[1718113282624,0.2,67017.0,67007.0,0.023]
[1718113282625,0.0386085,67008.0,67007.0,0.023]
[1718113282829,0.00960844,67011.0,67007.0,0.023]
[1718113282987,0.4428,67022.0,67006.0,0.0815]
[1718113282988,0.0386085,67013.0,67006.0,0.0815]
[1718113283199,0.00960844,67010.0,67007.0,0.023]
[1718113283424,0.0386085,67013.0,67007.0,0.023]
[1718113283425,0.0386085,67013.0,67010.0,0.149231]
[1718113283849,0.0386085,67013.0,67011.0,0.023]
[1718113284055,0.0386085,67013.0,67007.0,0.023]
[1718113284256,0.00960844,67012.0,67007.0,0.023]
[1718113284675,0.00960844,67012.0,67007.0,0.025]
[1718113284897,0.2,67009.0,67007.0,0.025]
[1718113285147,0.20962643,67008.0,67006.0,0.006]
[1718113285388,0.2,67005.0,67002.0,0.023]
[1718113285639,0.2,67004.0,67001.0,0.023]
[1718113285807,0.20962643,67004.0,67001.0,0.023]
[1718113286009,0.2,67003.0,67001.0,0.023]
[1718113286172,0.00962643,67003.0,67001.0,0.023]
[1718113286432,0.2,67005.0,67001.0,0.023]
[1718113286596,0.2386085,67007.0,67001.0,0.023]
[1718113286795,0.2386085,67007.0,67001.0,0.172249]
[1718113286970,0.20962643,67006.0,67001.0,0.172249]
[1718113287369,0.2,67005.0,67001.0,0.172249]
[1718113287583,0.2,67004.0,67001.0,0.174249]
[1718113287813,0.2,67002.0,67001.0,0.174249]
[1718113288591,0.2,67002.0,67001.0,0.025]
[1718113288856,0.001,67004.0,67001.0,0.029]
[1718113289130,0.00082037,67004.0,67001.0,0.023]
[1718113289624,0.00082037,67004.0,67001.0,0.029]
[1718113289625,0.001,67002.0,67001.0,0.029]
[1718113289895,0.001,67002.0,67001.0,0.023]
[1718113290376,0.001,67002.0,67001.0,0.172251]
[1718113291394,0.001,67002.0,67001.0,0.181251]
[1718113291616,0.0386085,67007.0,67001.0,0.174251]
[1718113291832,0.0386085,67007.0,67001.0,0.179251]
[1718113292046,0.001,67002.0,67001.0,0.179251]
[1718113292243,0.001,67002.0,67001.0,0.025]
[1718113292705,0.002,67002.0,67001.0,0.032]
[1718113292932,0.2386085,67007.0,67001.0,0.023]
[1718113293176,0.001,67002.0,67001.0,0.03]
[1718113293854,0.01062643,67002.0,67001.0,0.03]
[1718113294055,0.001,67002.0,67001.0,0.03]
[1718113294269,0.001,67002.0,67001.0,0.05439738]
[1718113294479,0.01062643,67002.0,67001.0,0.04739738]
[1718113294709,0.00962643,67002.0,67001.0,0.04739738]
[1718113294926,0.001,67002.0,67001.0,0.03]
[1718113295153,0.0105918,67002.0,67001.0,0.05239738]
[1718113295373,0.0105918,67002.0,67001.0,0.032]
[1718113296241,0.0105918,67002.0,67001.0,0.05439664]
[1718113296695,0.0105918,67002.0,67001.0,0.032]
[1718113296912,0.0105918,67002.0,67001.0,0.05439661]
[1718113297383,0.4337003,67002.0,67001.0,0.009]
[1718113297649,0.57802023,67002.0,67001.0,0.009]
[1718113297880,0.72726923,67002.0,67001.0,0.009]
[1718113298348,0.72726923,67002.0,67000.0,0.01086]
[1718113298349,0.72626923,67002.0,67000.0,0.01086]
[1718113298574,0.2586085,67001.0,67000.0,0.01086]
[1718113299042,0.4174513,67001.0,67000.0,0.01086]
[1718113301043,0.4174513,67001.0,67000.0,0.01186]
[1718113301457,0.4174513,67001.0,67000.0,0.01786]
[1718113301458,0.4184513,67001.0,67000.0,0.01786]
[1718113301677,0.4184513,67001.0,67000.0,0.01686]
[1718113301890,0.4174513,67001.0,67000.0,0.01186]
[1718113302317,0.4184513,67001.0,67000.0,0.01786]
[1718113303882,0.74457123,67001.0,67000.0,0.01786]
[1718113304328,0.74457123,67001.0,67000.0,0.01686]
[1718113304545,0.74357123,67001.0,67000.0,0.01186]
[1718113304752,0.75357123,67001.0,67000.0,0.01186]
[1718113304957,0.74357123,67001.0,67000.0,0.01186]
[1718113305164,0.75457123,67001.0,67000.0,0.01686]
[1718113305371,0.75457123,67001.0,67000.0,0.01086]
[1718113305578,0.75357123,67001.0,67000.0,0.01086]
[1718113305796,0.75357123,67001.0,67000.0,0.01486]
[1718113306218,0.75357123,67001.0,67000.0,0.01086]
[1718113306450,0.99267123,67001.0,67000.0,0.01086]
[1718113307728,1.29117423,67001.0,67000.0,0.01086]
[1718113307941,0.7163745,66999.0,66998.0,0.0134598]
[1718113308194,0.8568665,66998.0,66997.0,0.00856]
[1718113308411,1.5944357,66998.0,66997.0,0.00856]
[1718113308639,1.91213874,66998.0,66997.0,0.00856]
[1718113308872,1.75767624,66998.0,66997.0,0.00856]
[1718113309077,1.73544644,66998.0,66997.0,0.00856]
[1718113309289,1.93544644,66998.0,66997.0,0.00856]
[1718113309505,1.73544644,66998.0,66997.0,0.00856]
[1718113309722,1.73213361,66998.0,66997.0,0.00856]
[1718113309935,1.74613361,66998.0,66997.0,0.00956]
[1718113310151,1.73213361,66998.0,66997.0,0.00856]
[1718113310396,1.69098265,66998.0,66997.0,0.00856]
[1718113311825,1.70498265,66998.0,66997.0,0.00956]
[1718113312047,0.91365395,66984.0,66983.0,0.5]
[1718113312259,1.23977388,66984.0,66983.0,0.5]
[1718113312476,1.28781995,66984.0,66983.0,0.5]
[1718113313546,1.29381995,66984.0,66983.0,0.501]
[1718113313786,0.20958695,66972.0,66971.0,0.02335785]
[1718113314044,1.30990341,66972.0,66971.0,0.02335785]
[1718113314260,0.40753345,66962.0,66961.0,0.00019]
[1718113314464,0.55185338,66962.0,66961.0,0.00019]
[1718113314672,0.65185338,66962.0,66961.0,0.00019]
[1718113314879,0.66112522,66962.0,66961.0,0.00019]
[1718113315721,0.96980122,66962.0,66961.0,0.00019]
[1718113315951,1.21560122,66962.0,66961.0,0.00019]
[1718113316161,1.91225734,66962.0,66961.0,0.00019]
[1718113316373,2.06069217,66962.0,66961.0,0.00019]
[1718113316625,2.26069217,66962.0,66961.0,0.00019]
[1718113316837,2.51859217,66962.0,66961.0,0.00019]
[1718113317136,2.51859217,66962.0,66935.0,0.00857]
[1718113317137,0.25819545,66936.0,66935.0,0.00857]
[1718113317371,0.40251538,66936.0,66935.0,0.00857]
[1718113317602,0.41143574,66936.0,66935.0,0.00857]
[1718113318273,0.26711581,66936.0,66935.0,0.00857]
[1718113318942,0.56083174,66936.0,66935.0,0.00857]
[1718113319393,0.54124479,66936.0,66935.0,0.00857]
[1718113319611,0.04752886,66936.0,66935.0,0.23987]
[1718113319828,0.04852886,66936.0,66935.0,0.26691498]
[1718113320271,0.04752886,66936.0,66935.0,0.26691498]
[1718113320502,0.00892036,66936.0,66935.0,0.26691498]
[1718113320730,0.0386085,66937.0,66936.0,0.5]
[1718113320956,0.0386085,66937.0,66936.0,0.61917518]
[1718113321189,0.0386085,66940.0,66936.0,0.69133514]
[1718113321418,0.0386085,66944.0,66937.0,0.02341305]
[1718113321634,0.0386085,66942.0,66938.0,0.05032572]
[1718113321873,0.34431993,66953.0,66939.0,0.023]
[1718113321874,0.0386085,66941.0,66939.0,0.023]
[1718113322094,0.2386085,66941.0,66937.0,0.023]
[1718113322325,0.0386085,66941.0,66937.0,0.023]
[1718113322545,0.00986389,66940.0,66938.0,0.011893]
[1718113322980,0.00886389,66940.0,66939.0,0.023]
[1718113323193,0.00886389,66940.0,66939.0,0.176]
[1718113323409,0.0396085,66941.0,66939.0,0.0275263]
[1718113323614,0.0386085,66941.0,66940.0,0.023]
[1718113324084,0.0386085,66943.0,66940.0,0.0781]
[1718113324353,0.1513,66968.0,66937.0,0.09557301]
[1718113324354,0.0386085,66955.0,66947.0,0.149371]
[1718113324563,0.0386085,66951.0,66948.0,0.32967841]
[1718113324786,0.0386085,66951.0,66948.0,0.2417]
[1718113325022,0.2,66949.0,66948.0,0.2417]
[1718113325263,0.05819545,66951.0,66948.0,0.2417]
[1718113325264,0.0386085,66951.0,66948.0,0.2417]
[1718113325713,0.0386085,66941.0,66940.0,0.004]
[1718113326173,0.0386085,66936.0,66935.0,0.67097]
[1718113326386,0.0386085,66946.0,66935.0,0.8489238]
[1718113326594,0.0386085,66945.0,66943.0,0.0808]
[1718113326802,0.0386085,66946.0,66943.0,0.1461373]
[1718113327009,0.14431993,66955.0,66943.0,0.1461373]
[1718113327010,0.03842882,66945.0,66944.0,0.17793933]
[1718113327437,0.07215996,66967.0,66944.0,0.17793933]
[1718113327438,0.03842882,66947.0,66944.0,0.17793933]
[1718113327704,0.03842882,66955.0,66945.0,0.31585238]
[1718113327931,0.01958695,66965.0,66954.0,0.149356]
[1718113327932,0.03842882,66956.0,66954.0,0.149356]
[1718113328169,0.149311,66974.0,66954.0,0.149356]
[1718113328170,0.03842882,66957.0,66954.0,0.149356]
[1718113328394,0.03842882,66957.0,66946.0,0.1018]
[1718113328395,0.03842882,66957.0,66948.0,0.00041305]
[1718113328642,0.50511975,66982.0,66949.0,0.1549207]
[1718113328643,0.03842882,66951.0,66949.0,0.1549207]
[1718113328874,0.03842882,66951.0,66950.0,0.023]
[1718113329123,0.03842882,66951.0,66950.0,0.1779207]
[1718113329352,0.03842882,66951.0,66950.0,0.1549207]
[1718113329601,0.04727316,66951.0,66950.0,0.04022207]
[1718113330519,0.04727316,66951.0,66950.0,0.19515703]
[1718113331200,0.08215996,66974.0,66950.0,0.19515703]
[1718113331201,0.03842882,66958.0,66952.0,0.00041305]
[1718113331420,0.1626,66978.0,66957.0,0.00041305]
[1718113331421,0.03842882,66966.0,66957.0,0.00041305]
[1718113331665,0.03842882,66966.0,66954.0,0.07215996]
[1718113331666,0.03842882,66968.0,66967.0,0.07257301]
[1718113331880,0.03842882,66974.0,66969.0,0.00041305]
[1718113332095,0.03842882,66974.0,66971.0,0.149317]
[1718113332312,0.03842882,66973.0,66972.0,0.06879769]
[1718113333237,0.03842882,66978.0,66973.0,0.15091305]
[1718113333439,0.1626,66991.0,66976.0,0.00041305]
[1718113333440,0.03842882,66982.0,66976.0,0.00041305]
[1718113333653,0.03842882,66982.0,66978.0,0.149302]
[1718113333887,0.03842882,66985.0,66980.0,0.00041305]
[1718113334101,0.03842882,66981.0,66979.0,0.19771151]
[1718113334316,0.03842882,66983.0,66981.0,0.00041305]
[1718113334499,0.03842882,66984.0,66981.0,0.00041305]
[1718113334769,0.03842882,66982.0,66981.0,0.023]
[1718113334997,0.03842882,66982.0,66981.0,0.05325216]
[1718113335217,0.03842882,66990.0,66988.0,0.00041305]
[1718113335434,0.03842882,66990.0,66986.0,0.149284]
[1718113335435,0.03842882,66990.0,66989.0,0.1657]
[1718113335662,0.2,66988.0,66983.0,0.1657]
[1718113335893,0.03842882,66990.0,66984.0,0.023]
[1718113336566,0.03842882,66990.0,66988.0,0.005]
[1718113336989,0.03842882,66991.0,66990.0,0.0819]
[1718113337198,0.03842882,66991.0,66990.0,0.231176]
[1718113337409,0.03842882,66993.0,66990.0,0.254176]
[1718113337616,0.2,67000.0,66990.0,0.254176]
[1718113337617,0.03842882,66992.0,66991.0,0.149272]
[1718113337824,0.2,67000.0,66992.0,0.149269]
[1718113338008,0.03842882,66993.0,66992.0,0.149269]
[1718113338222,0.03842882,66993.0,66992.0,0.172269]
[1718113338351,0.03842882,66995.0,66992.0,0.172269]
[1718113338564,0.000946,67004.0,66992.0,0.00041305]
[1718113338565,0.03842882,67000.0,66992.0,0.00041305]
[1718113338788,0.03842882,66996.0,66994.0,0.149267]
[1718113338992,0.03842882,66996.0,66995.0,0.06497801]
[1718113340220,0.23842882,66996.0,66995.0,0.028]
[1718113340427,0.25801577,66996.0,66995.0,0.028]
[1718113340578,0.23842882,66996.0,66995.0,0.028]
[1718113340804,0.25801577,66996.0,66995.0,0.005]
[1718113341971,0.23842882,66996.0,66995.0,0.005]
[1718113342173,0.03842882,66993.0,66988.0,0.149279]
[1718113342330,0.03842882,66993.0,66989.0,0.03796921]
[1718113342776,0.03842882,66993.0,66989.0,0.11012917]
[1718113342984,0.03842882,66993.0,66990.0,0.07991305]
[1718113343402,0.03842882,66993.0,66992.0,0.149271]
[1718113343830,0.03842882,66993.0,66992.0,0.023]
[1718113344081,0.03842882,66993.0,66983.0,0.00041305]
[1718113344082,0.2,66990.0,66982.0,0.02068121]
[1718113344290,0.2,66991.0,66989.0,0.004]
[1718113344516,0.05801577,66993.0,66989.0,0.004]
[1718113344517,0.25801577,66990.0,66989.0,0.004]
[1718113344961,0.5516117,66990.0,66989.0,0.004]
[1718113345405,0.62303287,66990.0,66989.0,0.004]
[1718113345614,0.5616117,66990.0,66989.0,0.004]
[1718113345834,0.03842882,66975.0,66970.0,0.4718]
[1718113346034,0.03842882,66975.0,66969.0,0.01811342]
[1718113346035,0.2,66972.0,66969.0,0.01811342]
[1718113346239,0.2,66968.0,66966.0,0.081]
[1718113346859,0.2,66968.0,66966.0,0.10474]
[1718113347269,0.2,66968.0,66966.0,0.02374]
[1718113347484,0.03842882,66971.0,66966.0,0.02374]
[1718113347689,0.03842882,66971.0,66969.0,0.07215996]
[1718113347897,0.03842882,66971.0,66970.0,0.023]
[1718113348105,0.03842882,66971.0,66970.0,0.0926061]
[1718113348628,0.03842882,66971.0,66964.0,0.00041305]
[1718113348629,0.24745813,66971.0,66961.0,0.07215996]
[1718113348811,0.24745813,66971.0,66960.0,0.48987578]
[1718113348812,0.03842882,66967.0,66966.0,0.006]
[1718113349005,0.03842882,66963.0,66961.0,0.07215996]
[1718113349211,0.03842882,66963.0,66960.0,0.4718]
[1718113349412,0.00902931,66962.0,66960.0,0.4718]
[1718113349615,0.2,66961.0,66960.0,0.51898]
[1718113349837,0.00902931,66962.0,66954.0,0.5]
[1718113350049,0.00902931,66962.0,66951.0,0.226961]
[1718113350050,0.2,66960.0,66951.0,0.226961]
[1718113350252,0.03842882,66955.0,66951.0,0.0776]
[1718113350460,0.2,66954.0,66948.0,0.4718]
[1718113350667,0.03842882,66955.0,66948.0,0.4718]
[1718113350885,0.2,66952.0,66949.0,0.07667866]
[1718113351104,0.03842882,66955.0,66949.0,0.07667866]
[1718113351331,0.03842882,66955.0,66949.0,0.12095906]
[1718113351332,0.00902931,66951.0,66949.0,0.12095906]
[1718113351544,0.03842882,66955.0,66951.0,0.004]
[1718113352597,0.03842882,66955.0,66951.0,0.01]
[1718113353224,0.03842882,66955.0,66949.0,0.149367]
[1718113353436,0.03842882,66957.0,66953.0,0.07215996]
[1718113353638,0.2,66963.0,66953.0,0.07215996]
[1718113353639,0.03842882,66955.0,66953.0,0.07215996]
[1718113353868,0.03842882,66958.0,66953.0,0.07215996]
[1718113354076,0.03842882,66955.0,66954.0,0.05514357]
[1718113354707,0.03842882,66957.0,66954.0,0.05514357]
[1718113354952,0.03842882,66955.0,66954.0,0.05514357]
[1718113355596,0.03842882,66955.0,66953.0,0.07215996]
[1718113356020,0.05801577,66952.0,66951.0,0.006]
[1718113356289,0.03842882,66947.0,66942.0,0.0442804]
[1718113356490,0.03842882,66947.0,66944.0,0.0442804]
[1718113356897,0.03842882,66947.0,66943.0,0.20727644]
[1718113357097,0.03842882,66947.0,66943.0,0.35665644]
[1718113357484,0.00891465,66946.0,66943.0,0.35665644]
[1718113357725,0.00891465,66946.0,66945.0,0.149376]
[1718113357931,0.00891465,66946.0,66945.0,0.21039235]
[1718113358359,0.03842882,66947.0,66946.0,0.149374]
[1718113358563,0.03842882,66947.0,66946.0,0.172374]
[1718113358775,0.03842882,66942.0,66940.0,0.00086]
[1718113358994,0.03842882,66942.0,66941.0,0.02612274]
[1718113359207,0.03842882,66942.0,66941.0,0.17550774]
[1718113359417,0.03842882,66950.0,66943.0,0.00041305]
[1718113359651,0.03842882,66950.0,66949.0,0.22152696]
[1718113359858,0.03842882,66950.0,66949.0,0.24372096]
[1718113360505,0.03842882,66950.0,66949.0,0.26672096]
[1718113361164,0.01958695,66961.0,66953.0,0.149358]
[1718113361165,0.03842882,66954.0,66953.0,0.149358]
[1718113361633,0.03842882,66954.0,66953.0,0.172358]
[1718113361843,0.03842882,66954.0,66953.0,0.2095305]
[1718113362489,0.03842882,66954.0,66953.0,0.149358]
[1718113362696,0.03842882,66954.0,66944.0,0.5]
[1718113362697,0.03842882,66952.0,66943.0,0.02986]
[1718113362914,0.03842882,66948.0,66943.0,0.02986]
[1718113363565,0.03842882,66948.0,66941.0,0.149384]
[1718113363566,0.00891465,66947.0,66942.0,0.02986]
[1718113363821,0.00891465,66947.0,66945.0,0.04439996]
[1718113364029,0.03842882,66948.0,66943.0,0.0291517]
[1718113364250,0.03842882,66948.0,66945.0,0.2375]
[1718113364470,0.03842882,66948.0,66947.0,0.06659995]
[1718113364691,0.2,66955.0,66947.0,0.32114559]
[1718113364910,0.2,66954.0,66951.0,0.07215996]
[1718113365788,0.2,66950.0,66947.0,0.24233737]
[1718113366003,0.2,66951.0,66949.0,0.0667365]
[1718113366212,0.2,66951.0,66950.0,0.05701476]
[1718113366420,0.21958695,66951.0,66950.0,0.05701476]
[1718113366636,0.21958695,66948.0,66947.0,0.08696637]
[1718113366857,0.2,66946.0,66944.0,0.11099991]
[1718113367075,0.2,66946.0,66945.0,0.08205237]
[1718113367289,0.2,66946.0,66945.0,0.004]
[1718113367511,0.21958695,66946.0,66945.0,0.004]
[1718113367720,0.21958695,66946.0,66944.0,0.07215996]
[1718113367721,0.2,66946.0,66944.0,0.11665549]
[1718113367955,0.2,66946.0,66945.0,0.11880178]
[1718113368165,0.2,66946.0,66945.0,0.37250783]
[1718113368575,0.2,66949.0,66945.0,0.37250783]
[1718113368780,0.2,66954.0,66950.0,0.006]
[1718113368991,0.2,66954.0,66951.0,0.04451042]
[1718113368992,0.2,66953.0,66951.0,0.04451042]
[1718113369192,0.2,66953.0,66952.0,0.04451042]
[1718113369424,0.14431993,66957.0,66952.0,0.09218972]
[1718113369425,0.2,66955.0,66952.0,0.09218972]
[1718113369631,0.2,66955.0,66953.0,0.04452419]
[1718113370047,0.2,66955.0,66952.0,0.09218972]
[1718113370297,0.2,66954.0,66952.0,0.09218972]
[1718113370516,0.2,66953.0,66952.0,0.09218972]
[1718113370967,0.00886925,66953.0,66952.0,0.15895535]
[1718113371180,0.00886925,66953.0,66952.0,0.24154972]
[1718113371458,0.2,66955.0,66952.0,0.09218972]
[1718113371669,0.00886925,66953.0,66952.0,0.09218972]
[1718113372086,0.2284562,66953.0,66952.0,0.15895535]
[1718113372297,0.2284562,66953.0,66952.0,0.2332011]
[1718113372719,0.2284562,66953.0,66952.0,0.02602976]
[1718113373565,0.21958695,66953.0,66952.0,0.11505129]
[1718113374002,0.2284562,66953.0,66952.0,0.26052184]
[1718113374440,0.00886925,66953.0,66952.0,0.17150031]
[1718113374653,0.00886925,66953.0,66952.0,0.22397576]
[1718113374868,0.2,66955.0,66952.0,0.36415465]
[1718113375072,0.20886925,66953.0,66952.0,0.07461556]
[1718113375283,0.00886925,66953.0,66952.0,0.03002976]
[1718113375493,0.199,66955.0,66952.0,0.07462409]
[1718113375719,0.1666,66962.0,66952.0,0.29038967]
[1718113375720,0.00886925,66953.0,66952.0,0.29038967]
[1718113375921,0.199,66959.0,66952.0,0.17338976]
[1718113376142,0.199,66959.0,66953.0,0.04459387]
[1718113376354,0.00886925,66958.0,66957.0,0.06688442]
[1718113376564,0.199,66959.0,66957.0,0.06685226]
[1718113376774,0.199,66959.0,66955.0,0.149353]
[1718113377222,0.199,66959.0,66958.0,0.06688442]
[1718113377648,0.21858695,66959.0,66958.0,0.06688442]
[1718113377866,0.21858695,66958.0,66957.0,0.06688442]
[1718113378078,0.21858695,66958.0,66957.0,0.02930935]
[1718113378297,0.21858695,66954.0,66953.0,0.11699991]
[1718113378513,0.21858695,66954.0,66953.0,0.05061803]
[1718113378732,0.21858695,66954.0,66953.0,0.08207467]
[1718113378982,0.21858695,66954.0,66953.0,0.04461802]
[1718113379184,0.22748151,66954.0,66953.0,0.04461802]
[1718113379414,0.22748151,66954.0,66953.0,0.02216709]
[1718113379642,0.20858695,66953.0,66952.0,0.04461802]
[1718113379868,0.36795395,66949.0,66948.0,0.00086]
[1718113380079,1.13296784,66949.0,66948.0,0.00086]
[1718113380336,1.16080788,66949.0,66948.0,0.00086]
[1718113380550,1.31145323,66949.0,66948.0,0.00086]
[1718113381392,0.87096844,66949.0,66948.0,0.00086]
[1718113381622,0.86096844,66949.0,66948.0,0.00086]
[1718113382058,0.76096844,66949.0,66948.0,0.00086]
[1718113382271,0.76996844,66949.0,66948.0,0.00186]
[1718113382496,0.39868151,66949.0,66948.0,0.00186]
[1718113382721,0.38080144,66949.0,66948.0,0.00186]
[1718113382954,0.53016844,66949.0,66948.0,0.00186]
[1718113383404,0.53116844,66949.0,66948.0,0.08394788]
[1718113383631,0.53016844,66949.0,66948.0,0.00186]
[1718113383853,0.53016844,66949.0,66948.0,0.17417927]
[1718113384072,0.53016844,66949.0,66948.0,0.00286]
[1718113384286,0.23648151,66949.0,66948.0,0.00286]
[1718113384550,0.22748151,66949.0,66948.0,0.28864446]
[1718113384773,0.22748151,66949.0,66948.0,0.17709329]
[1718113385005,0.23748151,66949.0,66948.0,0.17809329]
[1718113385231,0.01889456,66949.0,66948.0,0.17809329]
[1718113385478,0.00889456,66949.0,66948.0,0.28864446]
[1718113385704,0.22748151,66949.0,66948.0,0.04648796]
[1718113385932,0.22848151,66949.0,66948.0,0.19551655]
[1718113386168,0.22848151,66949.0,66948.0,0.1134299]
[1718113386386,0.22848151,66949.0,66948.0,0.04649838]
[1718113386610,0.22848151,66949.0,66948.0,0.08881953]
[1718113386921,0.22848151,66949.0,66948.0,0.06876861]
[1718113387143,0.22848151,66949.0,66948.0,0.17669541]
[1718113387368,0.22848151,66949.0,66948.0,0.08394579]
[1718113387558,0.22848151,66949.0,66948.0,0.00186]
[1718113388290,0.20889456,66949.0,66948.0,0.06883237]
[1718113388520,0.22848151,66949.0,66948.0,0.08843109]
[1718113388740,0.22848151,66949.0,66948.0,0.08394444]
[1718113388956,0.20889456,66949.0,66948.0,0.06884787]
[1718113389182,0.20889456,66949.0,66948.0,0.00186]
[1718113389404,0.20889456,66949.0,66948.0,0.16474723]
[1718113389405,0.22848151,66949.0,66948.0,0.16474723]
[1718113389871,0.00989456,66949.0,66948.0,0.16474723]
[1718113390092,0.22848151,66949.0,66948.0,0.0826621]
[1718113390329,0.22848151,66949.0,66948.0,0.25409285]
[1718113390552,0.22848151,66949.0,66948.0,0.16474873]
[1718113390811,0.22848151,66949.0,66948.0,0.19461199]
[1718113391270,0.22848151,66949.0,66948.0,0.17086504]
[1718113391732,0.22848151,66949.0,66948.0,0.08877841]
[1718113391958,0.22848151,66949.0,66948.0,0.17086625]
[1718113392201,0.20889456,66949.0,66948.0,0.17086625]
[1718113392428,0.20889456,66949.0,66948.0,0.3049511]
[1718113392657,0.20889456,66949.0,66948.0,0.28264725]
[1718113392658,0.22848151,66949.0,66948.0,0.28264725]
[1718113392889,0.22848151,66949.0,66948.0,0.20055941]
[1718113393158,0.37784851,66949.0,66948.0,0.20055941]
[1718113393377,0.37784851,66949.0,66948.0,0.30495099]
[1718113393605,0.52216844,66949.0,66948.0,0.30495099]
[1718113393849,0.52216844,66949.0,66948.0,0.08877841]
[1718113394090,0.52216844,66949.0,66948.0,0.17821204]
[1718113394805,0.52216844,66949.0,66948.0,0.17086592]
[1718113395032,0.52216844,66949.0,66948.0,0.17821466]
[1718113395725,0.52216844,66949.0,66948.0,0.00186]
[1718113395726,0.35321449,66949.0,66948.0,0.00186]
[1718113395968,0.15421449,66949.0,66948.0,0.00186]
[1718113396880,0.00989456,66949.0,66948.0,0.00186]
[1718113397318,0.00989456,66949.0,66948.0,0.4070263]
[1718113397543,0.001,66949.0,66948.0,0.4070263]
[1718113397791,0.001,66949.0,66948.0,0.0197573]
[1718113398006,0.21958695,66949.0,66948.0,0.00186]
[1718113398232,0.53223688,66949.0,66948.0,0.00186]
[1718113398443,0.53123688,66949.0,66948.0,0.00186]
[1718113398657,0.53123688,66949.0,66948.0,0.00086]
[1718113398871,0.53123688,66949.0,66948.0,0.00686]
[1718113399086,0.68060388,66949.0,66948.0,0.00386]
[1718113399518,0.68060388,66949.0,66948.0,0.00686]
[1718113399724,0.68060388,66949.0,66948.0,0.00086]
[1718113399976,0.68060388,66949.0,66948.0,0.00386]
[1718113400176,0.68060388,66949.0,66948.0,0.00986]
[1718113400592,0.68060388,66949.0,66948.0,0.00386]
[1718113401649,0.68060388,66949.0,66948.0,0.00086]
[1718113401860,0.68060388,66949.0,66948.0,0.00186]
[1718113402767,0.69060388,66949.0,66948.0,0.00586]
[1718113402990,0.68060388,66949.0,66948.0,0.00586]
[1718113403445,0.78545427,66949.0,66948.0,0.00486]
[1718113403664,0.78545427,66949.0,66948.0,0.00086]
[1718113403880,0.78545427,66949.0,66948.0,0.00186]
[1718113404309,0.69060388,66949.0,66948.0,0.00186]
[1718113404958,1.16703788,66949.0,66948.0,0.00186]
[1718113405187,1.24733788,66949.0,66948.0,0.00186]
[1718113405452,1.54733788,66949.0,66948.0,0.00186]
[1718113405702,1.54733788,66949.0,66940.0,0.00086]
[1718113405703,0.75797195,66941.0,66940.0,0.00086]
[1718113405901,1.19565184,66941.0,66940.0,0.00086]
[1718113406181,1.5044322,66941.0,66940.0,0.00086]